[Event "Titled Tuesday Blitz May 03 Early 2022"]
[White "Sebag, Marie"]
[Black "parintele_chess"]
[WhiteFideId "617822"]
[WhiteElo "2440"]
[BlackElo "2214"]
[Result "1-0"]
[Round "03"]
[TimeControl "180+1"]
[Date "2022.05.03"]
[WhiteClock "0:00:39"]
[BlackClock "0:00:06"]

1. e4 {[%clk 0:03:00]}  c6 {[%clk 0:02:59]} 2. Nc3 {[%clk 0:02:58]}  d5 {[%clk 0:02:59]} 3. Nf3 {[%clk 0:02:58]}  Bg4 {[%clk 0:02:58]} 4. h3 {[%clk 0:02:56]}  Bh5 {[%clk 0:02:58]} 5. exd5 {[%clk 0:02:53]}  cxd5 {[%clk 0:02:58]} 6. g4 {[%clk 0:02:47]}  Bg6 {[%clk 0:02:57]} 7. Bb5+ {[%clk 0:02:47]}  Nc6 {[%clk 0:02:57]} 8. Ne5 {[%clk 0:02:45]}  Rc8 {[%clk 0:02:57]} 9. d4 {[%clk 0:02:45]}  e6 {[%clk 0:02:51]} 10. h4 {[%clk 0:02:42]}  f6 {[%clk 0:02:52]} 11. Nxg6 {[%clk 0:02:38]}  hxg6 {[%clk 0:02:52]} 12. Be3 {[%clk 0:02:30]}  a6 {[%clk 0:02:46]} 13. Bd3 {[%clk 0:02:29]}  Kf7 {[%clk 0:02:46]} 14. Qd2 {[%clk 0:02:29]}  Bd6 {[%clk 0:02:37]} 15. O-O-O {[%clk 0:02:27]}  Nge7 {[%clk 0:02:37]} 16. Kb1 {[%clk 0:02:26]}  Na5 {[%clk 0:02:33]} 17. h5 {[%clk 0:02:20]}  gxh5 {[%clk 0:02:06]} 18. gxh5 {[%clk 0:02:19]}  Bb4 {[%clk 0:02:06]} 19. Rdg1 {[%clk 0:02:06]}  Bxc3 {[%clk 0:02:05]} 20. bxc3 {[%clk 0:02:06]}  Qb6+ {[%clk 0:01:59]} 21. Ka1 {[%clk 0:02:05]}  Nc4 {[%clk 0:01:47]} 22. Bxc4 {[%clk 0:01:54]}  Rxc4 {[%clk 0:01:48]} 23. Rb1 {[%clk 0:01:40]}  Qc6 {[%clk 0:01:40]} 24. Rb3 {[%clk 0:01:39]}  Nf5 {[%clk 0:01:13]} 25. Qd3 {[%clk 0:01:22]}  b5 {[%clk 0:00:57]} 26. Bd2 {[%clk 0:01:18]}  Rc8 {[%clk 0:00:33]} 27. h6 {[%clk 0:01:09]}  gxh6 {[%clk 0:00:31]} 28. Qh3 {[%clk 0:01:00]}  Nxd4 {[%clk 0:00:14]} 29. cxd4 {[%clk 0:00:49]}  Rxc2 {[%clk 0:00:14]} 30. Qxh6 {[%clk 0:00:45]}  Rxa2+ {[%clk 0:00:07]} 31. Kxa2 {[%clk 0:00:44]}  Qc2+ {[%clk 0:00:06]} 32. Rb2 {[%clk 0:00:40]}  Qa4+ {[%clk 0:00:06]} 33. Kb1 {[%clk 0:00:39]} 1-0


[Site "https://www.chess.com"]

[Event "Titled Tuesday Blitz May 03 Early 2022"]
[White "Shuvalov, Evgenij"]
[Black "Samarth, J Rao"]
[WhiteFideId "4187237"]
[BlackFideId "46652370"]
[WhiteElo "2130"]
[BlackElo "1514"]
[Result "0-1"]
[Round "03"]
[TimeControl "180+1"]
[Date "2022.05.03"]
[WhiteClock "0:00:14"]
[BlackClock "0:00:21"]

1. Nf3 {[%clk 0:03:00]}  Nf6 {[%clk 0:02:55]} 2. c4 {[%clk 0:02:59]}  c5 {[%clk 0:02:54]} 3. g3 {[%clk 0:02:59]}  g6 {[%clk 0:02:53]} 4. Bg2 {[%clk 0:02:59]}  Bg7 {[%clk 0:02:53]} 5. O-O {[%clk 0:02:59]}  O-O {[%clk 0:02:52]} 6. d4 {[%clk 0:03:00]}  cxd4 {[%clk 0:02:52]} 7. Qxd4 {[%clk 0:03:00]}  Nc6 {[%clk 0:02:51]} 8. Qh4 {[%clk 0:02:59]}  d6 {[%clk 0:02:51]} 9. Nc3 {[%clk 0:02:59]}  Be6 {[%clk 0:02:50]} 10. Bd2 {[%clk 0:02:54]}  Rc8 {[%clk 0:02:49]} 11. Rac1 {[%clk 0:02:53]}  Ne5 {[%clk 0:02:48]} 12. b3 {[%clk 0:02:36]}  Nxf3+ {[%clk 0:02:45]} 13. Bxf3 {[%clk 0:02:37]}  Qd7 {[%clk 0:02:42]} 14. Rfd1 {[%clk 0:02:31]}  Rfd8 {[%clk 0:02:37]} 15. Nb5 {[%clk 0:02:27]}  a6 {[%clk 0:02:08]} 16. Nd4 {[%clk 0:02:27]}  Bg4 {[%clk 0:02:07]} 17. Ba5 {[%clk 0:02:01]}  Re8 {[%clk 0:02:03]} 18. Bg2 {[%clk 0:01:50]}  Rc5 {[%clk 0:01:56]} 19. h3 {[%clk 0:01:34]}  g5 {[%clk 0:01:43]} 20. hxg4 {[%clk 0:01:28]}  gxh4 {[%clk 0:01:38]} 21. Bb4 {[%clk 0:01:28]}  Rcc8 {[%clk 0:01:34]} 22. Nf5 {[%clk 0:01:22]}  hxg3 {[%clk 0:01:27]} 23. f3 {[%clk 0:01:13]}  Qc6 {[%clk 0:01:21]} 24. Be1 {[%clk 0:01:07]}  Qc5+ {[%clk 0:01:17]} 25. Kf1 {[%clk 0:01:04]}  Nd7 {[%clk 0:01:06]} 26. Bxg3 {[%clk 0:01:01]}  Be5 {[%clk 0:01:05]} 27. Bf2 {[%clk 0:01:01]}  Qc7 {[%clk 0:01:04]} 28. e3 {[%clk 0:00:50]}  e6 {[%clk 0:01:03]} 29. Nh6+ {[%clk 0:00:48]}  Kg7 {[%clk 0:01:00]} 30. g5 {[%clk 0:00:48]}  Nf8 {[%clk 0:00:54]} 31. f4 {[%clk 0:00:48]}  Bb2 {[%clk 0:00:50]} 32. Rc2 {[%clk 0:00:46]}  Ba3 {[%clk 0:00:49]} 33. Be1 {[%clk 0:00:40]}  Ng6 {[%clk 0:00:46]} 34. Bc3+ {[%clk 0:00:39]}  e5 {[%clk 0:00:45]} 35. Nf5+ {[%clk 0:00:37]}  Kh8 {[%clk 0:00:43]} 36. Bd5 {[%clk 0:00:32]}  Kg8 {[%clk 0:00:37]} 37. Nh6+ {[%clk 0:00:30]}  Kf8 {[%clk 0:00:37]} 38. f5 {[%clk 0:00:24]}  Ne7 {[%clk 0:00:33]} 39. Bxf7 {[%clk 0:00:24]}  Nxf5 {[%clk 0:00:30]} 40. Rf2 {[%clk 0:00:18]}  Nxh6 {[%clk 0:00:22]} 41. gxh6 {[%clk 0:00:16]}  Qxf7 {[%clk 0:00:21]} 42. Rxf7+ {[%clk 0:00:17]}  Kxf7 {[%clk 0:00:22]} 43. Ke2 {[%clk 0:00:17]}  Ke6 {[%clk 0:00:22]} 44. Kd3 {[%clk 0:00:17]}  Rg8 {[%clk 0:00:21]} 45. b4 {[%clk 0:00:14]}  b5 {[%clk 0:00:20]} 46. cxb5 {[%clk 0:00:14]}  axb5 {[%clk 0:00:21]} 47. Rb1 {[%clk 0:00:15]}  e4+ {[%clk 0:00:21]} 48. Kd4 {[%clk 0:00:14]}  Rc4# {[%clk 0:00:21]} 0-1


[Site "https://www.chess.com"]

[Event "Titled Tuesday Blitz May 03 Early 2022"]
[White "Shyaamnikhil P"]
[Black "Jumabayev, Rinat"]
[WhiteFideId "5024218"]
[BlackFideId "13702661"]
[WhiteElo "2329"]
[BlackElo "2561"]
[Result "0-1"]
[Round "03"]
[TimeControl "180+1"]
[Date "2022.05.03"]
[WhiteClock "0:00:01"]
[BlackClock "0:00:10"]

1. e4 {[%clk 0:03:00]}  c5 {[%clk 0:02:25]} 2. Nf3 {[%clk 0:02:58]}  d6 {[%clk 0:02:25]} 3. d4 {[%clk 0:02:57]}  cxd4 {[%clk 0:02:26]} 4. Nxd4 {[%clk 0:02:58]}  Nf6 {[%clk 0:02:27]} 5. Nc3 {[%clk 0:02:58]}  Nc6 {[%clk 0:02:27]} 6. Bc4 {[%clk 0:02:57]}  e6 {[%clk 0:02:27]} 7. Bb3 {[%clk 0:02:48]}  a6 {[%clk 0:02:24]} 8. Be3 {[%clk 0:02:46]}  Be7 {[%clk 0:02:17]} 9. O-O {[%clk 0:02:43]}  O-O {[%clk 0:02:13]} 10. f4 {[%clk 0:02:42]}  Nxd4 {[%clk 0:02:10]} 11. Bxd4 {[%clk 0:02:41]}  b5 {[%clk 0:02:11]} 12. e5 {[%clk 0:02:39]}  dxe5 {[%clk 0:02:08]} 13. fxe5 {[%clk 0:02:38]}  Nd7 {[%clk 0:02:08]} 14. Ne4 {[%clk 0:02:37]}  Bb7 {[%clk 0:02:05]} 15. Qg4 {[%clk 0:02:18]}  Bxe4 {[%clk 0:01:51]} 16. Qxe4 {[%clk 0:02:16]}  Nc5 {[%clk 0:01:40]} 17. Bxc5 {[%clk 0:02:08]}  Bxc5+ {[%clk 0:01:39]} 18. Kh1 {[%clk 0:02:08]}  Qd4 {[%clk 0:01:39]} 19. Rae1 {[%clk 0:01:54]}  Qxe4 {[%clk 0:01:13]} 20. Rxe4 {[%clk 0:01:55]}  Rad8 {[%clk 0:01:13]} 21. Re2 {[%clk 0:01:38]}  Rd7 {[%clk 0:01:09]} 22. g3 {[%clk 0:01:26]}  Rfd8 {[%clk 0:01:09]} 23. Kg2 {[%clk 0:01:24]}  Rd2 {[%clk 0:01:03]} 24. Kf3 {[%clk 0:01:17]}  R8d4 {[%clk 0:00:59]} 25. Rfe1 {[%clk 0:01:08]}  g5 {[%clk 0:00:59]} 26. c3 {[%clk 0:00:20]}  g4+ {[%clk 0:00:53]} 27. Kg2 {[%clk 0:00:20]}  Rd7 {[%clk 0:00:52]} 28. h3 {[%clk 0:00:19]}  h5 {[%clk 0:00:51]} 29. hxg4 {[%clk 0:00:19]}  hxg4 {[%clk 0:00:52]} 30. Bc2 {[%clk 0:00:16]}  Kg7 {[%clk 0:00:51]} 31. Kf1 {[%clk 0:00:14]}  Kh6 {[%clk 0:00:46]} 32. Rxd2 {[%clk 0:00:14]}  Rxd2 {[%clk 0:00:46]} 33. Re2 {[%clk 0:00:15]}  Rd7 {[%clk 0:00:45]} 34. Rh2+ {[%clk 0:00:12]}  Kg5 {[%clk 0:00:44]} 35. Rh7 {[%clk 0:00:12]}  Bf8 {[%clk 0:00:38]} 36. Bb3 {[%clk 0:00:11]}  Kf5 {[%clk 0:00:32]} 37. Rh5+ {[%clk 0:00:09]}  Ke4 {[%clk 0:00:33]} 38. Ke2 {[%clk 0:00:09]}  Bg7 {[%clk 0:00:18]} 39. Rh7 {[%clk 0:00:07]}  Bxe5 {[%clk 0:00:15]} 40. Bxe6 {[%clk 0:00:08]}  Re7 {[%clk 0:00:12]} 41. Bxg4 {[%clk 0:00:08]}  Bxg3 {[%clk 0:00:13]} 42. Kd1 {[%clk 0:00:07]}  Bf4 {[%clk 0:00:12]} 43. Be2 {[%clk 0:00:06]}  Ke3 {[%clk 0:00:11]} 44. Rh3+ {[%clk 0:00:05]}  Ke4 {[%clk 0:00:11]} 45. Bd3+ {[%clk 0:00:06]}  Ke5 {[%clk 0:00:10]} 46. Rh5+ {[%clk 0:00:06]}  Kd6 {[%clk 0:00:10]} 47. a3 {[%clk 0:00:05]}  Be5 {[%clk 0:00:10]} 48. Kc2 {[%clk 0:00:03]}  f6 {[%clk 0:00:11]} 49. Rf5 {[%clk 0:00:03]}  Rg7 {[%clk 0:00:11]} 50. Rf2 {[%clk 0:00:03]}  Kc5 {[%clk 0:00:11]} 51. Bf5 {[%clk 0:00:03]}  Rg3 {[%clk 0:00:10]} 52. Bd3 {[%clk 0:00:02]}  a5 {[%clk 0:00:10]} 53. b4+ {[%clk 0:00:01]}  Kb6 {[%clk 0:00:10]} 0-1


[Site "https://www.chess.com"]

[Event "Titled Tuesday Blitz May 03 Early 2022"]
[White "Sirosh, Ilja"]
[Black "Matinian, Nikita"]
[WhiteFideId "4500458"]
[BlackFideId "24129100"]
[WhiteElo "2554"]
[BlackElo "2752"]
[Result "0-1"]
[Round "03"]
[TimeControl "180+1"]
[Date "2022.05.03"]
[WhiteClock "0:00:08"]
[BlackClock "0:01:24"]

1. e4 {[%clk 0:03:00]}  c5 {[%clk 0:02:58]} 2. Nf3 {[%clk 0:03:01]}  d6 {[%clk 0:02:56]} 3. d4 {[%clk 0:03:01]}  cxd4 {[%clk 0:02:55]} 4. Nxd4 {[%clk 0:03:02]}  Nf6 {[%clk 0:02:54]} 5. Nc3 {[%clk 0:03:02]}  g6 {[%clk 0:02:55]} 6. Be3 {[%clk 0:03:02]}  Bg7 {[%clk 0:02:55]} 7. f3 {[%clk 0:03:01]}  O-O {[%clk 0:02:54]} 8. Qd2 {[%clk 0:03:02]}  Nc6 {[%clk 0:02:54]} 9. O-O-O {[%clk 0:03:02]}  d5 {[%clk 0:02:54]} 10. Nxc6 {[%clk 0:03:01]}  bxc6 {[%clk 0:02:54]} 11. Bh6 {[%clk 0:03:02]}  Qa5 {[%clk 0:02:48]} 12. Bxg7 {[%clk 0:02:48]}  Kxg7 {[%clk 0:02:49]} 13. e5 {[%clk 0:02:43]}  Nd7 {[%clk 0:02:48]} 14. h4 {[%clk 0:02:43]}  Rb8 {[%clk 0:02:46]} 15. h5 {[%clk 0:02:38]}  Qb4 {[%clk 0:02:42]} 16. b3 {[%clk 0:02:36]}  Nxe5 {[%clk 0:02:40]} 17. Kb2 {[%clk 0:02:19]}  Bf5 {[%clk 0:02:28]} 18. hxg6 {[%clk 0:02:11]}  Bxg6 {[%clk 0:02:29]} 19. Qh6+ {[%clk 0:02:05]}  Kg8 {[%clk 0:02:28]} 20. Rh4 {[%clk 0:01:59]}  Qc5 {[%clk 0:02:09]} 21. f4 {[%clk 0:01:57]}  Qf2 {[%clk 0:02:03]} 22. Rc1 {[%clk 0:00:41]}  Nc4+ {[%clk 0:01:48]} 23. Bxc4 {[%clk 0:00:41]}  dxc4 {[%clk 0:01:49]} 24. g4 {[%clk 0:00:27]}  cxb3 {[%clk 0:01:48]} 25. axb3 {[%clk 0:00:20]}  Rxb3+ {[%clk 0:01:48]} 26. Kxb3 {[%clk 0:00:21]}  Rb8+ {[%clk 0:01:47]} 27. Kc4 {[%clk 0:00:08]}  c5 {[%clk 0:01:24]} 0-1


[Site "https://www.chess.com"]

[Event "Titled Tuesday Blitz May 03 Early 2022"]
[White "Soucek, Petr"]
[Black "Saravana, Krishnan P."]
[WhiteFideId "23715170"]
[BlackFideId "5018382"]
[WhiteElo "1979"]
[BlackElo "2210"]
[Result "0-1"]
[Round "03"]
[TimeControl "180+1"]
[Date "2022.05.03"]
[WhiteClock "0:00:03"]
[BlackClock "0:01:30"]

1. e4 {[%clk 0:03:00]}  c6 {[%clk 0:02:59]} 2. d4 {[%clk 0:02:54]}  d5 {[%clk 0:02:59]} 3. e5 {[%clk 0:02:54]}  c5 {[%clk 0:02:59]} 4. dxc5 {[%clk 0:02:52]}  Nc6 {[%clk 0:02:59]} 5. f4 {[%clk 0:02:51]}  Nh6 {[%clk 0:02:55]} 6. Be3 {[%clk 0:02:46]}  Ng4 {[%clk 0:02:54]} 7. Bd4 {[%clk 0:02:41]}  h5 {[%clk 0:02:53]} 8. c3 {[%clk 0:02:30]}  e6 {[%clk 0:02:53]} 9. b4 {[%clk 0:02:28]}  Ne7 {[%clk 0:02:46]} 10. Nd2 {[%clk 0:02:19]}  Nf5 {[%clk 0:02:46]} 11. Bd3 {[%clk 0:01:56]}  Qh4+ {[%clk 0:02:43]} 12. g3 {[%clk 0:00:34]}  Nxg3 {[%clk 0:02:42]} 13. Ndf3 {[%clk 0:00:23]}  Nxh1+ {[%clk 0:02:30]} 14. Nxh4 {[%clk 0:00:20]}  Nxh2 {[%clk 0:02:31]} 15. Bb5+ {[%clk 0:00:19]}  Kd8 {[%clk 0:02:30]} 16. c6 {[%clk 0:00:18]}  Be7 {[%clk 0:02:28]} 17. Nhf3 {[%clk 0:00:17]}  Ng4 {[%clk 0:02:24]} 18. cxb7 {[%clk 0:00:14]}  Bxb7 {[%clk 0:02:24]} 19. Qa4 {[%clk 0:00:15]}  a6 {[%clk 0:02:17]} 20. Qa5+ {[%clk 0:00:15]}  Kc8 {[%clk 0:02:17]} 21. Bf1 {[%clk 0:00:11]}  Ng3 {[%clk 0:02:17]} 22. Bd3 {[%clk 0:00:08]}  Ne4 {[%clk 0:02:16]} 23. Bxe4 {[%clk 0:00:08]}  dxe4 {[%clk 0:02:17]} 24. Ng5 {[%clk 0:00:08]}  Rf8 {[%clk 0:02:14]} 25. Ne2 {[%clk 0:00:08]}  h4 {[%clk 0:02:03]} 26. Bc5 {[%clk 0:00:08]}  Bd8 {[%clk 0:02:03]} 27. Qa4 {[%clk 0:00:04]}  Rg8 {[%clk 0:01:54]} 28. O-O-O {[%clk 0:00:05]}  Nxe5 {[%clk 0:01:49]} 29. fxe5 {[%clk 0:00:05]}  Bxg5+ {[%clk 0:01:48]} 30. Kb2 {[%clk 0:00:06]}  Rd8 {[%clk 0:01:44]} 31. Rxd8+ {[%clk 0:00:06]}  Bxd8 {[%clk 0:01:44]} 32. Qd1 {[%clk 0:00:04]}  a5 {[%clk 0:01:43]} 33. a3 {[%clk 0:00:04]}  axb4 {[%clk 0:01:43]} 34. axb4 {[%clk 0:00:05]}  Bd5 {[%clk 0:01:43]} 35. Nd4 {[%clk 0:00:01]}  h3 {[%clk 0:01:41]} 36. Kb1 {[%clk 0:00:02]}  h2 {[%clk 0:01:41]} 37. Nb5 {[%clk 0:00:03]}  e3 {[%clk 0:01:39]} 38. Nd6+ {[%clk 0:00:03]}  Kd7 {[%clk 0:01:38]} 39. Ne4 {[%clk 0:00:02]}  h1=Q {[%clk 0:01:37]} 40. Qxh1 {[%clk 0:00:02]}  e2 {[%clk 0:01:35]} 41. Nd2 {[%clk 0:00:01]}  Bxh1 {[%clk 0:01:34]} 42. Nc4 {[%clk 0:00:02]}  e1=Q+ {[%clk 0:01:33]} 43. Kc2 {[%clk 0:00:03]}  Be4+ {[%clk 0:01:33]} 44. Kb3 {[%clk 0:00:03]}  Qd1+ {[%clk 0:01:30]} 45. Kb2 {[%clk 0:00:03]}  Qb1# {[%clk 0:01:30]} 0-1


[Site "https://www.chess.com"]

[Event "Titled Tuesday Blitz May 03 Early 2022"]
[White "Tatarinov, Dmitry"]
[Black "Jaskolka, Tomasz"]
[WhiteFideId "24160067"]
[BlackFideId "1170791"]
[WhiteElo "2302"]
[BlackElo "2073"]
[Result "1-0"]
[Round "03"]
[TimeControl "180+1"]
[Date "2022.05.03"]
[WhiteClock "0:01:20"]
[BlackClock "0:00:13"]

1. d4 {[%clk 0:02:59]}  e6 {[%clk 0:02:58]} 2. e4 {[%clk 0:02:59]}  d5 {[%clk 0:02:58]} 3. Nc3 {[%clk 0:02:59]}  Bb4 {[%clk 0:02:58]} 4. Ne2 {[%clk 0:02:56]}  dxe4 {[%clk 0:02:56]} 5. a3 {[%clk 0:02:56]}  Bxc3+ {[%clk 0:02:54]} 6. Nxc3 {[%clk 0:02:57]}  Nf6 {[%clk 0:02:54]} 7. Bg5 {[%clk 0:02:53]}  h6 {[%clk 0:02:47]} 8. Bh4 {[%clk 0:02:49]}  Nbd7 {[%clk 0:02:24]} 9. Nxe4 {[%clk 0:02:47]}  g5 {[%clk 0:02:23]} 10. Nxf6+ {[%clk 0:02:46]}  Nxf6 {[%clk 0:02:24]} 11. Bg3 {[%clk 0:02:46]}  Bd7 {[%clk 0:02:10]} 12. Be5 {[%clk 0:02:43]}  Bc6 {[%clk 0:02:07]} 13. h4 {[%clk 0:02:42]}  Rg8 {[%clk 0:02:03]} 14. hxg5 {[%clk 0:02:41]}  hxg5 {[%clk 0:02:04]} 15. Qd2 {[%clk 0:02:31]}  Qe7 {[%clk 0:02:00]} 16. O-O-O {[%clk 0:02:30]}  O-O-O {[%clk 0:02:00]} 17. Kb1 {[%clk 0:02:21]}  Ne4 {[%clk 0:01:56]} 18. Qe3 {[%clk 0:02:20]}  f6 {[%clk 0:01:54]} 19. Bh2 {[%clk 0:02:18]}  f5 {[%clk 0:01:54]} 20. Be5 {[%clk 0:02:16]}  f4 {[%clk 0:01:41]} 21. Qe1 {[%clk 0:02:16]}  Qf7 {[%clk 0:01:26]} 22. Bd3 {[%clk 0:02:14]}  Nd6 {[%clk 0:01:22]} 23. Rh7 {[%clk 0:02:12]}  Qf8 {[%clk 0:01:19]} 24. f3 {[%clk 0:02:08]}  Rd7 {[%clk 0:01:18]} 25. Rxd7 {[%clk 0:02:05]}  Kxd7 {[%clk 0:01:15]} 26. c4 {[%clk 0:02:03]}  Kc8 {[%clk 0:01:05]} 27. Qa5 {[%clk 0:01:58]}  Kb8 {[%clk 0:01:02]} 28. c5 {[%clk 0:01:55]}  b6 {[%clk 0:00:52]} 29. Qb4 {[%clk 0:01:44]}  Nc8 {[%clk 0:00:51]} 30. Rh1 {[%clk 0:01:39]}  Kb7 {[%clk 0:00:16]} 31. Rh7 {[%clk 0:01:38]}  Ne7 {[%clk 0:00:16]} 32. cxb6 {[%clk 0:01:32]}  Nd5 {[%clk 0:00:17]} 33. Qa5 {[%clk 0:01:23]}  axb6 {[%clk 0:00:16]} 34. Qa6+ {[%clk 0:01:23]}  Kb8 {[%clk 0:00:16]} 35. Bxc7+ {[%clk 0:01:20]}  Nxc7 {[%clk 0:00:13]} 36. Qxb6+ {[%clk 0:01:20]}  Ka8 {[%clk 0:00:12]} 37. Qxc6+ {[%clk 0:01:20]}  Kb8 {[%clk 0:00:12]} 38. Qxc7+ {[%clk 0:01:20]}  Ka8 {[%clk 0:00:13]} 39. Be4# {[%clk 0:01:20]} 1-0


[Site "https://www.chess.com"]

[Event "Titled Tuesday Blitz May 03 Early 2022"]
[White "Terry, Renato"]
[Black "Csonka, Balazs"]
[WhiteFideId "3803457"]
[BlackFideId "742910"]
[WhiteElo "2577"]
[BlackElo "2404"]
[Result "0-1"]
[Round "03"]
[TimeControl "180+1"]
[Date "2022.05.03"]
[WhiteClock "0:00:24"]
[BlackClock "0:00:11"]

1. e4 {[%clk 0:03:00]}  e5 {[%clk 0:02:54]} 2. Nf3 {[%clk 0:03:00]}  Nf6 {[%clk 0:02:54]} 3. Nxe5 {[%clk 0:02:59]}  Nc6 {[%clk 0:02:55]} 4. d4 {[%clk 0:02:48]}  Nxe5 {[%clk 0:01:50]} 5. dxe5 {[%clk 0:02:47]}  Nxe4 {[%clk 0:01:51]} 6. Qd5 {[%clk 0:02:44]}  Nc5 {[%clk 0:01:37]} 7. Bc4 {[%clk 0:02:43]}  Ne6 {[%clk 0:01:21]} 8. O-O {[%clk 0:02:43]}  c6 {[%clk 0:01:20]} 9. Qf3 {[%clk 0:02:41]}  d6 {[%clk 0:01:11]} 10. exd6 {[%clk 0:02:36]}  Bxd6 {[%clk 0:01:10]} 11. Nc3 {[%clk 0:02:35]}  Qh4 {[%clk 0:01:02]} 12. Rd1 {[%clk 0:02:30]}  Bxh2+ {[%clk 0:00:59]} 13. Kf1 {[%clk 0:02:19]}  Qxc4+ {[%clk 0:00:58]} 14. Ne2 {[%clk 0:02:19]}  Be5 {[%clk 0:00:53]} 15. Qe3 {[%clk 0:02:12]}  Bf6 {[%clk 0:00:50]} 16. c3 {[%clk 0:02:12]}  b6 {[%clk 0:00:46]} 17. b3 {[%clk 0:02:12]}  Qc5 {[%clk 0:00:44]} 18. Qg3 {[%clk 0:02:07]}  Ba6 {[%clk 0:00:41]} 19. Rb1 {[%clk 0:01:56]}  Qxc3 {[%clk 0:00:34]} 20. Be3 {[%clk 0:01:55]}  Qc2 {[%clk 0:00:30]} 21. Bd2 {[%clk 0:01:52]}  O-O {[%clk 0:00:25]} 22. Ke1 {[%clk 0:01:45]}  Rfe8 {[%clk 0:00:20]} 23. Rbc1 {[%clk 0:01:39]}  Qxa2 {[%clk 0:00:19]} 24. Rc4 {[%clk 0:00:26]}  Bxc4 {[%clk 0:00:18]} 25. bxc4 {[%clk 0:00:27]}  Nd4 {[%clk 0:00:15]} 26. Qd3 {[%clk 0:00:26]}  Nxe2 {[%clk 0:00:14]} 27. Be3 {[%clk 0:00:27]}  Rad8 {[%clk 0:00:12]} 28. Qxe2 {[%clk 0:00:23]}  Qxe2+ {[%clk 0:00:11]} 29. Kxe2 {[%clk 0:00:24]}  Rxd1 {[%clk 0:00:11]} 0-1


[Site "https://www.chess.com"]

[Event "Titled Tuesday Blitz May 03 Early 2022"]
[White "Todorovic, Bojan"]
[Black "Piliczewski, Bogusz"]
[WhiteFideId "917087"]
[BlackFideId "1104144"]
[WhiteElo "2266"]
[BlackElo "1896"]
[Result "1/2-1/2"]
[Round "03"]
[TimeControl "180+1"]
[Date "2022.05.03"]
[WhiteClock "0:00:06"]
[BlackClock "0:00:31"]

1. d4 {[%clk 0:02:59]}  d5 {[%clk 0:02:58]} 2. c4 {[%clk 0:02:58]}  c6 {[%clk 0:02:58]} 3. Nf3 {[%clk 0:02:58]}  Nf6 {[%clk 0:02:58]} 4. e3 {[%clk 0:02:57]}  Bf5 {[%clk 0:02:53]} 5. Nc3 {[%clk 0:02:56]}  e6 {[%clk 0:02:52]} 6. Nh4 {[%clk 0:02:56]}  Bg4 {[%clk 0:02:52]} 7. Qb3 {[%clk 0:02:55]}  Qb6 {[%clk 0:02:50]} 8. h3 {[%clk 0:02:52]}  Bh5 {[%clk 0:02:48]} 9. g4 {[%clk 0:02:51]}  Bg6 {[%clk 0:02:47]} 10. Nxg6 {[%clk 0:02:51]}  hxg6 {[%clk 0:02:47]} 11. Bg2 {[%clk 0:02:50]}  Nbd7 {[%clk 0:02:46]} 12. Bd2 {[%clk 0:02:48]}  Bd6 {[%clk 0:02:35]} 13. c5 {[%clk 0:02:40]}  Qxb3 {[%clk 0:02:30]} 14. axb3 {[%clk 0:02:40]}  Bc7 {[%clk 0:02:27]} 15. b4 {[%clk 0:02:40]}  a6 {[%clk 0:02:22]} 16. b5 {[%clk 0:02:32]}  cxb5 {[%clk 0:02:22]} 17. Nxb5 {[%clk 0:02:30]}  Rc8 {[%clk 0:02:22]} 18. Nxc7+ {[%clk 0:02:26]}  Rxc7 {[%clk 0:02:22]} 19. Ba5 {[%clk 0:02:13]}  Rc6 {[%clk 0:02:21]} 20. Bd2 {[%clk 0:01:42]}  O-O {[%clk 0:02:21]} 21. b4 {[%clk 0:01:41]}  Rb8 {[%clk 0:02:14]} 22. Ke2 {[%clk 0:01:40]}  Rbc8 {[%clk 0:02:00]} 23. Rhb1 {[%clk 0:01:32]}  Ne4 {[%clk 0:01:57]} 24. Be1 {[%clk 0:01:24]}  f5 {[%clk 0:01:54]} 25. f3 {[%clk 0:01:24]}  Nef6 {[%clk 0:01:51]} 26. Kd1 {[%clk 0:01:09]}  b5 {[%clk 0:01:47]} 27. Ra2 {[%clk 0:01:01]}  Nb8 {[%clk 0:01:43]} 28. Rba1 {[%clk 0:01:01]}  Nfd7 {[%clk 0:01:39]} 29. Bg3 {[%clk 0:00:59]}  g5 {[%clk 0:01:27]} 30. gxf5 {[%clk 0:00:50]}  exf5 {[%clk 0:01:26]} 31. f4 {[%clk 0:00:50]}  gxf4 {[%clk 0:01:23]} 32. Bxd5+ {[%clk 0:00:48]}  Kh7 {[%clk 0:01:17]} 33. Bxf4 {[%clk 0:00:43]}  Rg6 {[%clk 0:01:12]} 34. Rg2 {[%clk 0:00:40]}  Rxg2 {[%clk 0:01:10]} 35. Bxg2 {[%clk 0:00:39]}  Nc6 {[%clk 0:01:07]} 36. Rxa6 {[%clk 0:00:33]}  Nxb4 {[%clk 0:01:06]} 37. Ra8 {[%clk 0:00:26]}  Rxa8 {[%clk 0:01:05]} 38. Bxa8 {[%clk 0:00:25]}  Nd3 {[%clk 0:01:03]} 39. Bd6 {[%clk 0:00:23]}  Nf6 {[%clk 0:00:57]} 40. Kc2 {[%clk 0:00:18]}  Ne1+ {[%clk 0:00:56]} 41. Kb3 {[%clk 0:00:17]}  Ne8 {[%clk 0:00:51]} 42. Be5 {[%clk 0:00:17]}  Nd3 {[%clk 0:00:50]} 43. Bc6 {[%clk 0:00:15]}  Nxe5 {[%clk 0:00:48]} 44. Bxe8 {[%clk 0:00:14]}  Nc4 {[%clk 0:00:44]} 45. Bxb5 {[%clk 0:00:13]}  Nxe3 {[%clk 0:00:44]} 46. Kc3 {[%clk 0:00:09]}  f4 {[%clk 0:00:43]} 47. Kd3 {[%clk 0:00:09]}  g5 {[%clk 0:00:42]} 48. Bc6 {[%clk 0:00:07]}  Kg6 {[%clk 0:00:41]} 49. Bf3 {[%clk 0:00:06]}  Kf5 {[%clk 0:00:39]} 50. d5 {[%clk 0:00:06]}  Ke5 {[%clk 0:00:35]} 51. d6 {[%clk 0:00:06]}  Nf5 {[%clk 0:00:32]} 52. Bg4 {[%clk 0:00:04]}  Nxd6 {[%clk 0:00:29]} 53. cxd6 {[%clk 0:00:04]}  Kxd6 {[%clk 0:00:29]} 54. Ke4 {[%clk 0:00:05]}  Ke7 {[%clk 0:00:29]} 55. Kf5 {[%clk 0:00:05]}  Kf8 {[%clk 0:00:30]} 56. Kxg5 {[%clk 0:00:06]}  Kg8 {[%clk 0:00:30]} 57. Kxf4 {[%clk 0:00:06]}  Kh8 {[%clk 0:00:31]} 1/2-1/2


[Site "https://www.chess.com"]